fUST/lending_fUST_20240621
["ID","MTS","AMOUNT","RATE_DAILY","PERIOD"]
[330026013,1718950243190,-2769.97,0.00054683,120]
[330026014,1718950243199,-500.0,0.00054684,120]
[330026015,1718950243208,-798.33,0.00054684,120]
[330026016,1718950243218,-500.0,0.00054684,120]
[330026017,1718950243227,-514.26,0.00054684,120]
[330026018,1718950243236,-606.86008456,0.00054684,120]
[330026019,1718950243246,-1069.71,0.00054684,120]
[330026020,1718950243255,-643.47,0.00054684,120]
[330026021,1718950243265,-520.88,0.00054684,120]
[330026022,1718950243274,-500.0,0.00054684,120]
[330026023,1718950243283,-500.0,0.00054684,120]
[330026024,1718950243292,-555.76,0.00054684,120]
[330026025,1718950243301,-117.31042015,0.00054684,120]
[330026046,1718951146263,-201.08903082,0.00028483,2]
[330026047,1718951231399,-300.7720061,0.00028483,2]
[330026048,1718951246818,-151.4934631,0.00028483,2]
[330026049,1718951246839,-305.61451123,0.00034524,4]
[330026050,1718951246860,-156.37245685,0.00034524,4]
[330026051,1718951246883,-419.38912844,0.00038525,2]
[330026052,1718951350206,-1802.34999086,0.00038525,2]
[330026053,1718951350231,-166.647942,0.00038948,2]
[330026102,1718951432119,-1048.245,0.0005238,120]
[330026104,1718951432131,-1951.64549899,0.0005238,120]
[330026106,1718951432141,-2546.66682276,0.000524,120]
[330026108,1718951432151,-2268.35727739,0.000529,2]
[330026110,1718951432160,-173.301067,0.00052917,30]
[330026112,1718951432169,-150.517875,0.00052917,30]
[330026114,1718951432180,-300.0,0.00052999,10]
[330026116,1718951432191,-300.0,0.00052999,15]
[330026118,1718951432201,-24593.35034667,0.00053,30]
[330026120,1718951432210,-385.06238079,0.00053,53]
[330026244,1718951438092,-614.93761921,0.00053,53]
[330026245,1718951438102,-2268.35727736,0.0005328,2]
[330026247,1718951438117,-173.301067,0.00053578,30]
[330026249,1718951438126,-150.517875,0.00053578,30]
[330026251,1718951438136,-2268.35727736,0.0005366,2]
[330026253,1718951438146,-1984.94606519,0.000539,90]
[330026255,1718951438159,-497.75042735,0.000539,90]
[330026257,1718951438171,-267.45300945,0.000539,90]
[330026260,1718951438348,-5004.44623511,0.000539,90]
[330026261,1718951438360,-2245.4042629,0.000539,90]
[330026262,1718951438370,-364.09,0.0005399,3]
[330026263,1718951438379,-303.41,0.0005399,3]
[330026264,1718951438388,-542.39,0.00053999,30]
[330026265,1718951438398,-563.46,0.00053999,120]
[330026266,1718951438408,-10000.0,0.00054,120]
[330026267,1718951438417,-10000.0,0.00054,120]
[330026268,1718951438427,-10000.0,0.00054,120]
[330026269,1718951438436,-10000.0,0.00054,120]
[330026270,1718951438446,-10000.0,0.00054,120]
[330026271,1718951438456,-2161.73795996,0.00054,120]
[330026272,1718951438465,-1000.0,0.00054,54]
[330026273,1718951438476,-2502.0,0.00054,120]
[330026274,1718951438486,-156.28480466,0.00054028,4]
[330026275,1718951438496,-229.20064352,0.00054039,4]
[330026276,1718951438506,-205.43962116,0.00054039,4]
[330026277,1718951438515,-2268.35727736,0.0005404,2]
[330026278,1718951438526,-205.34678634,0.00054239,4]
[330026279,1718951438536,-195.96455969,0.00054239,4]
[330026280,1718951438545,-173.301067,0.0005424,30]
[330026281,1718951438555,-150.517875,0.0005424,30]
[330026282,1718951438568,-500.0,0.00054246,120]
[330026283,1718951438577,-8258.195999,0.000543,120]
[330026284,1718951438587,-2268.35727736,0.0005442,2]
[330026285,1718951438597,-10000.0,0.000545,80]
[330026286,1718951438606,-238.08550274,0.00054519,20]
[330026287,1718951438617,-563.46,0.00054519,120]
[330026288,1718951438631,-563.46,0.00054519,120]
[330026289,1718951438641,-563.46,0.00054519,120]
[330026290,1718951438650,-563.46,0.00054519,120]
[330026291,1718951438660,-563.46,0.00054519,120]
[330026292,1718951438670,-500.0,0.0005452,2]
[330026293,1718951438680,-500.0,0.0005452,2]
[330026294,1718951438690,-500.0,0.0005452,2]
[330026295,1718951438700,-500.0,0.0005452,2]
[330026296,1718951438710,-500.0,0.0005452,2]
[330026297,1718951438720,-500.0,0.0005452,2]
[330026298,1718951438729,-605.57131963,0.0005452,120]
[330026299,1718951438739,-501.38662639,0.0005452,7]
[330026300,1718951438750,-500.0,0.0005452,120]
[330026301,1718951438760,-500.0,0.0005452,120]
[330026302,1718951438770,-561.23,0.0005452,120]
[330026303,1718951438779,-500.0,0.0005452,120]
[330026304,1718951438790,-500.0,0.0005452,120]
[330026305,1718951438799,-500.0,0.0005452,120]
[330026306,1718951438810,-524.26973907,0.0005452,120]
[330026307,1718951438819,-500.0,0.0005452,120]
[330026308,1718951438829,-500.0,0.0005452,120]
[330026309,1718951438839,-500.0,0.0005452,120]
[330026310,1718951438849,-500.0,0.0005452,120]
[330026311,1718951438858,-500.0,0.0005452,120]
[330026312,1718951438872,-499.44315468,0.0005452,120]
[330026313,1718951438881,-504.7983694,0.0005452,120]
[330026314,1718951438890,-613.540955,0.0005452,120]
[330026315,1718951438899,-500.0,0.0005452,120]
[330026316,1718951438909,-500.0,0.0005452,120]
[330026317,1718951438918,-500.0,0.0005452,120]
[330026318,1718951438928,-500.0,0.0005452,120]
[330026319,1718951438938,-500.0,0.0005452,120]
[330026320,1718951438948,-503.03900665,0.0005452,120]
[330026321,1718951439072,-1001.78,0.0005452,120]
[330026322,1718951439082,-500.0,0.0005452,120]
[330026323,1718951439092,-507.12,0.0005452,120]
[330026324,1718951439104,-376.74563348,0.0005452,120]
[330026325,1718951439124,-500.0,0.0005452,120]
[330026326,1718951439134,-502.79049257,0.0005452,120]
[330026327,1718951439146,-500.0,0.0005452,120]
[330026328,1718951439156,-500.0,0.0005452,120]
[330026329,1718951439167,-809.0,0.0005452,120]
[330026330,1718951439178,-600.0,0.0005452,120]
[330026331,1718951439189,-500.0,0.0005452,120]
[330026332,1718951439199,-500.0,0.0005452,120]
[330026333,1718951439211,-500.0,0.0005452,120]
[330026334,1718951439221,-504.31450733,0.0005452,120]
[330026335,1718951439231,-500.0,0.0005452,120]
[330026336,1718951439241,-500.0,0.0005452,20]
[330026337,1718951439251,-500.87878689,0.0005452,120]
[330026338,1718951439262,-1159.87,0.0005452,120]
[330026339,1718951439272,-509.42521399,0.0005452,120]
[330026340,1718951439282,-500.0,0.0005452,120]
[330026341,1718951439293,-500.0,0.0005452,120]
[330026342,1718951439303,-1724.85,0.0005452,120]
[330026343,1718951439313,-500.0,0.0005452,120]
[330026344,1718951439323,-1588.15,0.0005452,120]
[330026345,1718951439333,-500.0,0.0005452,120]
[330026346,1718951439343,-501.00794981,0.0005452,120]
[330026347,1718951439353,-1183.22,0.0005452,120]
[330026348,1718951439366,-500.0,0.0005452,120]
[330026349,1718951439376,-500.0,0.0005452,120]
[330026350,1718951439386,-511.55581052,0.0005452,120]
[330026351,1718951439396,-513.57439989,0.0005452,120]
[330026352,1718951439406,-500.0,0.0005452,120]
[330026353,1718951439415,-500.0,0.0005452,120]
[330026354,1718951439425,-500.0,0.0005452,120]
[330026355,1718951439435,-500.0,0.0005452,120]
[330026356,1718951439445,-500.0,0.0005452,120]
[330026357,1718951439455,-646.85,0.0005452,120]
[330026358,1718951439464,-518.67724503,0.0005452,120]
[330026359,1718951439475,-500.0,0.0005452,120]
[330026360,1718951439486,-500.0,0.0005452,120]
[330026361,1718951439495,-562.73,0.0005452,120]
[330026362,1718951439505,-1000.0,0.0005452,120]
[330026363,1718951439515,-500.0,0.0005452,120]
[330026364,1718951439524,-500.0,0.0005452,30]
[330026365,1718951439533,-1175.59,0.0005452,120]
[330026366,1718951439542,-2000.0,0.0005452,5]
[330026367,1718951439551,-500.0,0.0005452,120]
[330026368,1718951439561,-481.72424941,0.0005452,120]
[330026369,1718951439573,-500.0,0.0005452,120]
[330026370,1718951439583,-500.0,0.0005452,120]
[330026371,1718951439592,-896.86,0.0005452,120]
[330026372,1718951439602,-500.0,0.0005452,120]
[330026373,1718951439612,-396.35052844,0.0005452,120]
[330026374,1718951439621,-500.0,0.0005452,120]
[330026375,1718951439630,-500.0,0.0005452,120]
[330026376,1718951439640,-500.0,0.0005452,120]
[330026377,1718951439651,-500.0,0.0005452,120]
[330026378,1718951439661,-500.0,0.0005452,120]
[330026379,1718951439671,-500.0,0.0005452,120]
[330026380,1718951439681,-500.0,0.0005452,120]
[330026381,1718951439691,-500.0,0.0005452,120]
[330026382,1718951439701,-500.0,0.0005452,120]
[330026383,1718951439711,-500.0,0.0005452,120]
[330026384,1718951439722,-500.0,0.0005452,120]
[330026385,1718951439732,-500.0,0.0005452,120]
[330026386,1718951439743,-734.82,0.0005452,120]
[330026387,1718951439752,-523.7819815,0.0005452,120]
[330026388,1718951439762,-500.0,0.0005452,7]
[330026389,1718951439772,-501.80074607,0.0005452,7]
[330026390,1718951439782,-500.0,0.0005452,120]
[330026391,1718951439793,-500.0,0.0005452,120]
[330026392,1718951439805,-500.0,0.0005452,120]
[330026393,1718951439824,-646.95,0.0005452,120]
[330026394,1718951439841,-500.0,0.0005452,120]
[330026395,1718951439851,-500.0,0.0005452,120]
[330026396,1718951439863,-500.0,0.0005452,120]
[330026397,1718951439873,-500.0,0.0005452,120]
[330026398,1718951439883,-500.0,0.0005452,120]
[330026399,1718951439893,-504.59206977,0.0005452,120]
[330026400,1718951439903,-500.0,0.0005452,120]
[330026401,1718951439914,-500.0,0.0005452,2]
[330026402,1718951439924,-500.0,0.0005452,120]
[330026403,1718951439934,-503.29660455,0.0005452,120]
[330026404,1718951439955,-419.94752886,0.0005452,120]
[330026405,1718951439966,-500.0,0.0005452,120]
[330026406,1718951439977,-500.0,0.0005452,120]
[330026407,1718951439987,-500.0,0.0005452,120]
[330026408,1718951439996,-613.12,0.0005452,120]
[330026409,1718951440006,-637.06,0.0005452,120]
[330026410,1718951440015,-500.10429129,0.0005452,120]
[330026411,1718951440026,-500.0,0.0005452,14]
[330026412,1718951440036,-500.0,0.0005452,120]
[330026413,1718951440046,-1005.46,0.0005452,120]
[330026414,1718951440056,-500.0,0.0005452,120]
[330026416,1718951440063,-500.0,0.0005452,120]
[330026418,1718951440073,-1691.0,0.0005452,120]
[330026419,1718951440083,-1230.04,0.0005452,120]
[330026422,1718951440093,-500.0,0.0005452,120]
[330026423,1718951440110,-1976.48,0.0005452,120]
[330026425,1718951440122,-500.0,0.0005452,120]
[330026427,1718951440133,-500.7461977,0.0005452,120]
[330026429,1718951440143,-500.0,0.0005452,120]
[330026430,1718951440155,-500.0,0.0005452,120]
[330026431,1718951440166,-500.0,0.0005452,120]
[330026432,1718951440176,-500.0,0.0005452,120]
[330026433,1718951440188,-500.0,0.0005452,120]
[330026434,1718951440199,-500.0,0.0005452,120]
[330026435,1718951440210,-507.02296099,0.0005452,120]
[330026436,1718951440220,-500.0,0.0005452,120]
[330026437,1718951440230,-500.0,0.0005452,120]
[330026438,1718951440240,-500.0,0.0005452,120]
[330026439,1718951440251,-500.0,0.0005452,120]
[330026441,1718951440261,-500.0,0.0005452,120]
[330026443,1718951440271,-500.0,0.0005452,120]
[330026445,1718951440282,-503.27934595,0.0005452,120]
[330026447,1718951440292,-799.69,0.0005452,120]
[330026448,1718951440302,-500.0,0.0005452,120]
[330026450,1718951440312,-507.91167417,0.0005452,120]
[330026452,1718951440322,-500.0,0.0005452,7]
[330026453,1718951440331,-500.0,0.0005452,120]
[330026454,1718951440342,-500.0,0.0005452,120]
[330026455,1718951440352,-500.0,0.0005452,120]
[330026456,1718951440363,-506.13954686,0.0005452,120]
[330026457,1718951440372,-500.0,0.0005452,120]
[330026458,1718951440382,-500.0,0.0005452,120]
[330026459,1718951440392,-500.0,0.0005452,120]
[330026460,1718951440402,-500.0,0.0005452,120]
[330026461,1718951440412,-729.24,0.0005452,120]
[330026462,1718951440422,-1148.87,0.0005452,120]
[330026463,1718951440432,-3598.75,0.0005452,120]
[330026464,1718951440442,-560.11229567,0.0005452,120]
[330026465,1718951440452,-500.0,0.0005452,120]
[330026466,1718951440462,-500.0,0.0005452,120]
[330026468,1718951440472,-500.0,0.0005452,120]
[330026469,1718951440482,-500.0,0.0005452,120]
[330026471,1718951440491,-500.0,0.0005452,120]
[330026473,1718951440501,-500.0,0.0005452,120]
[330026475,1718951440511,-500.0,0.0005452,120]
[330026477,1718951440521,-1865.86,0.0005452,120]
[330026478,1718951440531,-1865.86,0.0005452,120]
[330026479,1718951440540,-1865.86,0.0005452,120]
[330026480,1718951440550,-1865.86,0.0005452,120]
[330026481,1718951440560,-1865.86,0.0005452,120]
[330026482,1718951440570,-1865.86,0.0005452,120]
[330026483,1718951440580,-1865.86,0.0005452,120]
[330026484,1718951440590,-1865.86,0.0005452,120]
[330026485,1718951440600,-1865.86,0.0005452,120]
[330026486,1718951440610,-500.0,0.0005452,120]
[330026487,1718951440620,-507.22726176,0.0005452,120]
[330026488,1718951440630,-2031.29,0.0005452,120]
[330026489,1718951440640,-2031.29,0.0005452,120]
[330026490,1718951440651,-2031.29,0.0005452,120]
[330026491,1718951440661,-2031.29,0.0005452,120]
[330026492,1718951440671,-2031.29,0.0005452,120]
[330026493,1718951440681,-2031.29,0.0005452,120]
[330026494,1718951440691,-500.0,0.0005452,120]
[330026495,1718951440701,-500.0,0.0005452,120]
[330026496,1718951440712,-427.95808286,0.0005452,120]
[330026497,1718951440722,-500.0,0.0005452,120]
[330026498,1718951440732,-1237.19,0.0005452,120]
[330026499,1718951440742,-504.90575669,0.0005452,120]
[330026500,1718951440752,-2020.21,0.0005452,120]
[330026501,1718951440762,-12326.84,0.0005452,120]
[330026502,1718951440772,-500.0,0.0005452,120]
[330026503,1718951440782,-500.0,0.0005452,2]
[330026504,1718951440793,-883.04,0.0005452,120]
[330026505,1718951440802,-500.0,0.0005452,120]
[330026506,1718951440812,-5120.93,0.0005452,120]
[330026507,1718951440822,-454.61354012,0.0005452,120]
[330026508,1718951440832,-1427.93,0.0005452,120]
[330026509,1718951440841,-1594.25,0.0005452,120]
[330026510,1718951440852,-500.0,0.0005452,120]
[330026511,1718951440863,-2443.82,0.0005452,120]
[330026512,1718951440872,-505.18086063,0.0005452,120]
[330026513,1718951440882,-716.9,0.0005452,120]
[330026514,1718951440994,-19827.42,0.0005452,120]
[330026515,1718951441004,-1645.57,0.0005452,120]
[330026516,1718951441014,-500.0,0.0005452,120]
[330026517,1718951441023,-500.0,0.0005452,120]
[330026518,1718951441033,-982.3,0.0005452,120]
[330026519,1718951441042,-500.0,0.0005452,120]
[330026520,1718951441052,-1317.39,0.0005452,120]
[330026521,1718951441062,-500.0,0.0005452,120]
[330026522,1718951441071,-500.0,0.0005452,120]
[330026523,1718951441081,-250.0,0.0005452,120]
[330026524,1718951441092,-500.0,0.0005452,120]
[330026525,1718951441101,-500.0,0.0005452,120]
[330026526,1718951441114,-500.0,0.0005452,120]
[330026527,1718951441124,-500.0,0.0005452,120]
[330026528,1718951441133,-500.0,0.0005452,120]
[330026529,1718951441142,-507.42764687,0.0005452,120]
[330026530,1718951441152,-1533.31,0.0005452,120]
[330026531,1718951441162,-621.52,0.0005452,120]
[330026532,1718951441171,-500.0,0.0005452,120]
[330026533,1718951441181,-33491.83,0.0005452,120]
[330026534,1718951441191,-500.0,0.0005452,120]
[330026535,1718951441201,-500.0,0.0005452,120]
[330026536,1718951441211,-500.0,0.0005452,120]
[330026537,1718951441220,-500.0,0.0005452,120]
[330026538,1718951441229,-500.0,0.0005452,120]
[330026539,1718951441238,-500.0,0.0005452,120]
[330026540,1718951441247,-500.0,0.0005452,120]
[330026541,1718951441257,-1340.85,0.0005452,120]
[330026542,1718951441266,-500.0,0.0005452,120]
[330026543,1718951441275,-500.0,0.0005452,120]
[330026544,1718951441284,-500.0,0.0005452,120]
[330026545,1718951441293,-3623.21,0.0005452,21]
[330026546,1718951441303,-500.0,0.0005452,120]
[330026547,1718951441313,-2283.39,0.0005452,120]
[330026548,1718951441322,-519.44760531,0.0005452,120]
[330026549,1718951441331,-500.0,0.0005452,120]
[330026550,1718951441341,-500.0,0.0005452,120]
[330026551,1718951441351,-173.28775302,0.0005452,120]
[330026552,1718951441360,-540.95840594,0.0005452,120]
[330026553,1718951441370,-517.0,0.0005452,120]
[330026554,1718951441379,-500.0,0.0005452,120]
[330026555,1718951441389,-5869.68,0.0005452,120]
[330026556,1718951441399,-500.0,0.0005452,120]
[330026557,1718951441408,-1115.93,0.0005452,120]
[330026558,1718951441418,-500.0,0.0005452,120]
[330026559,1718951441427,-500.0,0.0005452,120]
[330026560,1718951441436,-7130.89,0.0005452,120]
[330026561,1718951441445,-644.85,0.0005452,120]
[330026562,1718951441454,-500.0,0.0005452,120]
[330026563,1718951441463,-500.0,0.0005452,120]
[330026564,1718951441472,-686.09,0.0005452,120]
[330026565,1718951441482,-503.78141916,0.0005452,120]
[330026566,1718951441491,-500.0,0.0005452,120]
[330026567,1718951441500,-500.0,0.0005452,120]
[330026568,1718951441510,-500.0,0.0005452,120]
[330026569,1718951441519,-500.0,0.0005452,120]
[330026570,1718951441529,-500.0,0.0005452,120]
[330026571,1718951441538,-2070.11,0.0005452,120]
[330026572,1718951441549,-500.0,0.0005452,120]
[330026573,1718951441558,-500.0,0.0005452,120]
[330026574,1718951441567,-500.0,0.0005452,120]
[330026575,1718951441578,-500.0,0.0005452,120]
[330026576,1718951441587,-500.0,0.0005452,120]
[330026577,1718951441597,-293.77748019,0.0005452,120]
[330026578,1718951441607,-835.52,0.0005452,120]
[330026579,1718951441618,-6612.53,0.0005452,120]
[330026580,1718951441627,-533.2,0.0005452,120]
[330026581,1718951441636,-500.0,0.0005452,120]
[330026582,1718951441644,-500.0,0.0005452,120]
[330026583,1718951441654,-524.22048006,0.0005452,120]
[330026584,1718951441663,-667.97,0.0005452,120]
[330026585,1718951441673,-500.0,0.0005452,120]
[330026586,1718951441682,-500.0,0.0005452,120]
[330026587,1718951441692,-1083.48,0.0005452,120]
[330026588,1718951441702,-500.0,0.0005452,120]
[330026589,1718951441711,-500.0,0.0005452,120]
[330026590,1718951441721,-500.0,0.0005452,120]
[330026591,1718951441730,-502.81223827,0.0005452,120]
[330026592,1718951441739,-500.0,0.0005452,120]
[330026593,1718951441749,-500.0,0.0005452,120]
[330026594,1718951441758,-500.0,0.0005452,120]
[330026595,1718951441769,-1229.65,0.0005452,120]
[330026596,1718951441778,-1043.9,0.0005452,120]
[330026597,1718951441788,-2234.11,0.0005452,120]
[330026598,1718951441798,-500.0,0.0005452,120]
[330026599,1718951441808,-1651.76,0.0005452,120]
[330026600,1718951441819,-572.66,0.0005452,120]
[330026601,1718951441828,-500.0,0.0005452,60]
[330026602,1718951441839,-500.0,0.0005452,120]
[330026603,1718951441848,-608.47,0.0005452,120]
[330026604,1718951441858,-529.09,0.0005452,120]
[330026605,1718951441868,-500.0,0.0005452,120]
[330026606,1718951441877,-500.0,0.0005452,120]
[330026607,1718951441887,-611.83,0.0005452,120]
[330026608,1718951441896,-500.0,0.0005452,120]
[330026609,1718951441905,-524.02,0.0005452,120]
[330026610,1718951441914,-696.78,0.0005452,120]
[330026611,1718951441924,-500.0,0.0005452,120]
[330026612,1718951441932,-500.0,0.0005452,120]
[330026613,1718951441941,-627.36,0.0005452,2]
[330026614,1718951441950,-1598.1,0.0005452,120]
[330026615,1718951441960,-510.38,0.0005452,120]
[330026616,1718951441969,-464.1985087,0.0005452,120]
[330026617,1718951441978,-500.0,0.0005452,120]
[330026618,1718951441987,-10000.0,0.000546,85]
[330026619,1718951441996,-1865.86,0.000546,120]
[330026620,1718951442005,-500.0,0.00054601,2]
[330026621,1718951442014,-500.0,0.00054601,2]
[330026622,1718951442024,-500.0,0.00054601,2]
[330026623,1718951442033,-500.0,0.00054601,2]
[330026624,1718951442043,-1865.86,0.00054601,120]
[330026625,1718951442052,-1865.86,0.00054601,120]
[330026626,1718951442061,-1865.86,0.00054601,120]
[330026627,1718951442070,-1865.86,0.00054601,120]
[330026628,1718951442080,-1865.86,0.00054601,120]
[330026629,1718951442089,-1865.86,0.00054601,120]
[330026630,1718951442099,-2031.29,0.00054601,120]
[330026631,1718951442114,-2031.29,0.00054601,120]
[330026632,1718951442123,-2031.29,0.00054601,120]
[330026633,1718951442133,-2031.29,0.00054601,120]
[330026634,1718951442143,-563.46,0.00054601,120]
[330026635,1718951442153,-563.46,0.00054601,120]
[330026636,1718951442162,-563.46,0.00054601,120]
[330026637,1718951442172,-563.46,0.00054601,120]
[330026638,1718951442182,-500.0,0.00054602,120]
[330026639,1718951442193,-500.0,0.00054602,120]
[330026640,1718951442203,-500.0,0.00054602,120]
[330026641,1718951442212,-500.0,0.00054602,120]
[330026642,1718951442222,-504.38324353,0.00054602,120]
[330026643,1718951442231,-500.0,0.00054602,120]
[330026644,1718951442240,-500.0,0.00054602,120]
[330026645,1718951442249,-546.99077768,0.00054602,120]
[330026646,1718951442258,-500.0,0.00054602,120]
[330026647,1718951442268,-1001.78,0.00054602,120]
[330026648,1718951442277,-500.0,0.00054602,120]
[330026649,1718951442286,-507.12,0.00054602,120]
[330026650,1718951442296,-500.0,0.00054602,120]
[330026651,1718951442305,-809.0,0.00054602,120]
[330026652,1718951442316,-600.0,0.00054602,120]
[330026653,1718951442325,-500.0,0.00054602,120]
[330026654,1718951442335,-500.0,0.00054602,120]
[330026655,1718951442344,-151.0,0.00054602,14]
[330026656,1718951442353,-244.633128,0.00054602,14]
[330026657,1718951442364,-1159.87,0.00054602,120]
[330026658,1718951442372,-500.0,0.00054602,120]
[330026659,1718951442381,-500.0,0.00054602,120]
[330026660,1718951442394,-1724.85,0.00054602,120]
[330026661,1718951442404,-500.0,0.00054602,120]
[330026662,1718951442413,-1588.15,0.00054602,120]
[330026663,1718951442423,-1183.22,0.00054602,120]
[330026664,1718951442432,-237.604234,0.00054602,14]
[330026665,1718951442441,-237.604234,0.00054602,14]
[330026666,1718951442450,-237.604234,0.00054602,14]
[330026667,1718951442459,-237.604234,0.00054602,14]
[330026668,1718951442469,-500.0,0.00054602,120]
[330026669,1718951442479,-500.0,0.00054602,120]
[330026670,1718951442488,-500.0,0.00054602,120]
[330026671,1718951442497,-500.0,0.00054602,120]
[330026672,1718951442507,-646.85,0.00054602,120]
[330026673,1718951442516,-562.73,0.00054602,120]
[330026675,1718951442525,-1080.07929073,0.00054602,120]
[330026677,1718951442607,-500.0,0.00054602,120]
[330026678,1718951442620,-500.0,0.00054602,30]
[330026679,1718951442630,-1175.59,0.00054602,120]
[330026680,1718951442639,-2000.0,0.00054602,5]
[330026681,1718951442648,-500.0,0.00054602,120]
[330026682,1718951442658,-896.86,0.00054602,120]
[330026683,1718951442667,-500.0,0.00054602,120]
[330026684,1718951442678,-500.0,0.00054602,120]
[330026685,1718951442687,-500.0,0.00054602,120]
[330026686,1718951442696,-500.0,0.00054602,120]
[330026687,1718951442706,-500.0,0.00054602,120]
[330026688,1718951442715,-500.0,0.00054602,120]
[330026689,1718951442724,-500.0,0.00054602,120]
[330026690,1718951442733,-500.0,0.00054602,120]
[330026693,1718951442742,-500.0,0.00054602,120]
[330026696,1718951442752,-151.0,0.00054602,14]
[330026698,1718951442761,-152.698154,0.00054602,14]
[330026701,1718951442769,-500.0,0.00054602,120]
[330026705,1718951442779,-734.82,0.00054602,120]
[330026708,1718951442788,-178.65397086,0.00054602,7]
[330026711,1718951442798,-500.0,0.00054602,120]
[330026712,1718951442808,-500.0,0.00054602,120]
[330026713,1718951442817,-646.95,0.00054602,120]
[330026714,1718951442826,-500.0,0.00054602,120]
[330026715,1718951442836,-500.0,0.00054602,120]
[330026716,1718951442847,-500.0,0.00054602,120]
[330026717,1718951442856,-613.12,0.00054602,120]
[330026718,1718951442867,-637.06,0.00054602,120]
[330026719,1718951442876,-500.0,0.00054602,120]
[330026720,1718951442886,-1005.46,0.00054602,120]
[330026721,1718951442895,-500.0,0.00054602,120]
[330026722,1718951442904,-151.0,0.00054602,14]
[330026723,1718951442914,-151.0,0.00054602,14]
[330026724,1718951442923,-151.0,0.00054602,14]
[330026725,1718951442933,-151.0,0.00054602,14]
[330026726,1718951442942,-151.0,0.00054602,14]
[330026728,1718951442951,-1691.0,0.00054602,120]
[330026730,1718951442961,-249.416587,0.00054602,14]
[330026731,1718951442971,-1230.04,0.00054602,120]
[330026733,1718951442981,-500.0,0.00054602,120]
[330026735,1718951442990,-1976.48,0.00054602,120]
[330026737,1718951443000,-500.0,0.00054602,120]
[330026739,1718951443010,-500.0,0.00054602,120]
[330026740,1718951443019,-500.0,0.00054602,120]
[330026741,1718951443029,-500.0,0.00054602,120]
[330026742,1718951443038,-500.0,0.00054602,120]
[330026743,1718951443048,-151.0,0.00054602,14]
[330026744,1718951443057,-151.0,0.00054602,14]
[330026745,1718951443067,-151.0,0.00054602,14]
[330026746,1718951443076,-151.0,0.00054602,14]
[330026747,1718951443086,-151.0,0.00054602,14]
[330026748,1718951443095,-500.0,0.00054602,120]
[330026749,1718951443106,-500.0,0.00054602,120]
[330026750,1718951443120,-500.0,0.00054602,120]
[330026751,1718951443129,-151.0,0.00054602,14]
[330026752,1718951443139,-151.677865,0.00054602,14]
[330026753,1718951443150,-500.0,0.00054602,120]
[330026754,1718951443160,-151.0,0.00054602,14]
[330026756,1718951443169,-500.0,0.00054602,120]
[330026757,1718951443179,-151.0,0.00054602,14]
[330026759,1718951443188,-500.0,0.00054602,120]
[330026761,1718951443199,-799.69,0.00054602,120]
[330026762,1718951443209,-500.0,0.00054602,7]
[330026763,1718951443218,-500.0,0.00054602,120]